[Event "Titled Tuesday Blitz January 31 Early 2023"]
[White "Ronka, Erik"]
[Black "Shipov, Sergei"]
[WhiteFideId "505080"]
[BlackFideId "4113624"]
[WhiteElo "2276"]
[BlackElo "2541"]
[Result "0-1"]
[Round "02"]
[TimeControl "180+2"]
[Date "2023.01.31"]
[WhiteClock "0:00:11"]
[BlackClock "0:00:56"]

1. e4 {[%clk 0:03:00]}  e6 {[%clk 0:02:59]} 2. d4 {[%clk 0:03:00]}  d5 {[%clk 0:02:59]} 3. Nc3 {[%clk 0:03:00]}  Bb4 {[%clk 0:02:58]} 4. e5 {[%clk 0:03:01]}  c5 {[%clk 0:02:56]} 5. a3 {[%clk 0:03:01]}  Ba5 {[%clk 0:02:56]} 6. b4 {[%clk 0:02:43]}  cxd4 {[%clk 0:02:55]} 7. Qg4 {[%clk 0:02:42]}  Kf8 {[%clk 0:02:51]} 8. Nb5 {[%clk 0:02:39]}  Bb6 {[%clk 0:02:43]} 9. Nf3 {[%clk 0:02:38]}  Nc6 {[%clk 0:02:43]} 10. Bd3 {[%clk 0:02:33]}  Nge7 {[%clk 0:02:33]} 11. Bb2 {[%clk 0:02:08]}  Ng6 {[%clk 0:02:32]} 12. Qg3 {[%clk 0:01:51]}  f6 {[%clk 0:02:08]} 13. Nbxd4 {[%clk 0:01:12]}  Nxd4 {[%clk 0:01:47]} 14. Bxd4 {[%clk 0:00:46]}  Bxd4 {[%clk 0:01:44]} 15. Nxd4 {[%clk 0:00:46]}  Nxe5 {[%clk 0:01:44]} 16. O-O {[%clk 0:00:46]}  Bd7 {[%clk 0:01:38]} 17. Kh1 {[%clk 0:00:39]}  Kf7 {[%clk 0:01:32]} 18. f4 {[%clk 0:00:39]}  Nxd3 {[%clk 0:01:32]} 19. cxd3 {[%clk 0:00:39]}  Re8 {[%clk 0:01:32]} 20. Rab1 {[%clk 0:00:32]}  Kg8 {[%clk 0:01:30]} 21. h3 {[%clk 0:00:27]}  Rc8 {[%clk 0:01:29]} 22. Rbc1 {[%clk 0:00:18]}  Qe7 {[%clk 0:01:20]} 23. Rxc8 {[%clk 0:00:16]}  Rxc8 {[%clk 0:01:19]} 24. Re1 {[%clk 0:00:17]}  Qd6 {[%clk 0:01:19]} 25. Qe3 {[%clk 0:00:16]}  Re8 {[%clk 0:01:18]} 26. Nf3 {[%clk 0:00:16]}  b6 {[%clk 0:01:17]} 27. Rc1 {[%clk 0:00:16]}  Rc8 {[%clk 0:01:17]} 28. Rxc8+ {[%clk 0:00:15]}  Bxc8 {[%clk 0:01:17]} 29. Nd4 {[%clk 0:00:14]}  Bd7 {[%clk 0:01:15]} 30. Nf3 {[%clk 0:00:12]}  Qc7 {[%clk 0:01:13]} 31. g3 {[%clk 0:00:12]}  Kf7 {[%clk 0:01:13]} 32. Kh2 {[%clk 0:00:13]}  Qc2+ {[%clk 0:01:12]} 33. Kg1 {[%clk 0:00:12]}  Qb1+ {[%clk 0:01:09]} 34. Kh2 {[%clk 0:00:13]}  Qb2+ {[%clk 0:01:09]} 35. Kh1 {[%clk 0:00:12]}  Qxa3 {[%clk 0:01:09]} 36. Qd4 {[%clk 0:00:12]}  Qc1+ {[%clk 0:01:08]} 37. Kg2 {[%clk 0:00:11]}  Qc2+ {[%clk 0:01:08]} 38. Kh1 {[%clk 0:00:11]}  h6 {[%clk 0:01:08]} 39. f5 {[%clk 0:00:12]}  Qd1+ {[%clk 0:01:05]} 40. Kg2 {[%clk 0:00:12]}  Qe2+ {[%clk 0:01:06]} 41. Qf2 {[%clk 0:00:08]}  Qxf2+ {[%clk 0:01:06]} 42. Kxf2 {[%clk 0:00:09]}  e5 {[%clk 0:01:04]} 43. g4 {[%clk 0:00:10]}  d4 {[%clk 0:01:02]} 44. Nd2 {[%clk 0:00:10]}  Bb5 {[%clk 0:01:02]} 45. Ke2 {[%clk 0:00:10]}  a5 {[%clk 0:01:01]} 46. Ne4 {[%clk 0:00:10]}  Ke7 {[%clk 0:01:01]} 47. bxa5 {[%clk 0:00:09]}  bxa5 {[%clk 0:01:01]} 48. Nc5 {[%clk 0:00:10]}  Kd6 {[%clk 0:01:00]} 49. Nb3 {[%clk 0:00:10]}  a4 {[%clk 0:00:59]} 50. Nc1 {[%clk 0:00:10]}  e4 {[%clk 0:00:59]} 51. Kd2 {[%clk 0:00:11]}  Bxd3 {[%clk 0:00:56]} 0-1


[Site "https://www.chess.com"]

[Event "Titled Tuesday Blitz January 31 Early 2023"]
[White "Zacurdajev, Dmitry"]
[Black "Iliaguev, Nisim"]
[WhiteFideId "4196309"]
[BlackFideId "2817276"]
[WhiteElo "2273"]
[BlackElo "2402"]
[Result "0-1"]
[Round "02"]
[TimeControl "180+2"]
[Date "2023.01.31"]
[WhiteClock "0:00:31"]
[BlackClock "0:00:44"]

1. d4 {[%clk 0:03:00]}  Nf6 {[%clk 0:03:00]} 2. c4 {[%clk 0:03:00]}  c5 {[%clk 0:03:00]} 3. d5 {[%clk 0:03:00]}  d6 {[%clk 0:03:00]} 4. Nc3 {[%clk 0:03:00]}  g6 {[%clk 0:02:59]} 5. Nf3 {[%clk 0:02:59]}  Bg7 {[%clk 0:03:00]} 6. Bf4 {[%clk 0:02:59]}  O-O {[%clk 0:02:59]} 7. h3 {[%clk 0:03:00]}  e6 {[%clk 0:02:45]} 8. e3 {[%clk 0:02:58]}  exd5 {[%clk 0:02:45]} 9. cxd5 {[%clk 0:02:58]}  Na6 {[%clk 0:02:45]} 10. Be2 {[%clk 0:02:39]}  Re8 {[%clk 0:02:45]} 11. O-O {[%clk 0:02:39]}  Ne4 {[%clk 0:02:39]} 12. Rc1 {[%clk 0:02:30]}  Nc7 {[%clk 0:02:28]} 13. Nxe4 {[%clk 0:02:08]}  Rxe4 {[%clk 0:02:29]} 14. Bd3 {[%clk 0:02:00]}  Rb4 {[%clk 0:02:27]} 15. b3 {[%clk 0:01:59]}  Nxd5 {[%clk 0:02:19]} 16. Bg5 {[%clk 0:01:59]}  Nf6 {[%clk 0:02:17]} 17. Bc4 {[%clk 0:01:59]}  Be6 {[%clk 0:02:15]} 18. Nd2 {[%clk 0:01:52]}  d5 {[%clk 0:02:10]} 19. Be2 {[%clk 0:01:46]}  Qe7 {[%clk 0:01:53]} 20. Qc2 {[%clk 0:01:38]}  Rc8 {[%clk 0:01:47]} 21. e4 {[%clk 0:01:31]}  h6 {[%clk 0:01:38]} 22. exd5 {[%clk 0:01:22]}  Bxd5 {[%clk 0:01:32]} 23. Be3 {[%clk 0:01:17]}  Rh4 {[%clk 0:01:05]} 24. Nf3 {[%clk 0:01:09]}  Re4 {[%clk 0:00:59]} 25. Bd3 {[%clk 0:01:01]}  Rxe3 {[%clk 0:00:58]} 26. fxe3 {[%clk 0:01:02]}  Qxe3+ {[%clk 0:00:59]} 27. Qf2 {[%clk 0:00:58]}  Qxd3 {[%clk 0:00:56]} 28. Rxc5 {[%clk 0:00:48]}  Rxc5 {[%clk 0:00:52]} 29. Qxc5 {[%clk 0:00:49]}  Ne4 {[%clk 0:00:51]} 30. Qc8+ {[%clk 0:00:43]}  Kh7 {[%clk 0:00:49]} 31. Kh2 {[%clk 0:00:31]}  Qxf1 {[%clk 0:00:44]} 0-1


[Site "https://www.chess.com"]

[Event "Titled Tuesday Blitz January 31 Early 2023"]
[White "Costachi, Mihnea"]
[Black "Baches Garcia, Guillermo"]
[WhiteFideId "1217518"]
[BlackFideId "2209764"]
[WhiteElo "2476"]
[BlackElo "2327"]
[Result "1-0"]
[Round "02"]
[TimeControl "180+2"]
[Date "2023.01.31"]
[WhiteClock "0:01:18"]
[BlackClock "0:00:05"]

1. Nc3 {[%clk 0:03:00]}  d6 {[%clk 0:02:57]} 2. d4 {[%clk 0:03:00]}  Nf6 {[%clk 0:02:56]} 3. e4 {[%clk 0:03:00]}  Nbd7 {[%clk 0:02:56]} 4. Nf3 {[%clk 0:03:00]}  e5 {[%clk 0:02:56]} 5. Be2 {[%clk 0:02:56]}  Be7 {[%clk 0:02:56]} 6. g4 {[%clk 0:02:57]}  c6 {[%clk 0:02:41]} 7. g5 {[%clk 0:02:53]}  Nh5 {[%clk 0:02:29]} 8. dxe5 {[%clk 0:02:37]}  dxe5 {[%clk 0:02:26]} 9. Nxe5 {[%clk 0:02:37]}  Nxe5 {[%clk 0:02:05]} 10. Qxd8+ {[%clk 0:02:38]}  Bxd8 {[%clk 0:02:06]} 11. Bxh5 {[%clk 0:02:38]}  Bg4 {[%clk 0:01:48]} 12. Bxg4 {[%clk 0:02:33]}  Nxg4 {[%clk 0:01:49]} 13. Bf4 {[%clk 0:02:24]}  Bb6 {[%clk 0:01:44]} 14. O-O {[%clk 0:02:23]}  h6 {[%clk 0:01:31]} 15. gxh6 {[%clk 0:02:17]}  g5 {[%clk 0:01:24]} 16. Bxg5 {[%clk 0:02:10]}  f6 {[%clk 0:00:50]} 17. Bf4 {[%clk 0:02:04]}  Ke7 {[%clk 0:00:43]} 18. Na4 {[%clk 0:01:52]}  Rag8 {[%clk 0:00:12]} 19. Bg3 {[%clk 0:01:46]}  Bxf2+ {[%clk 0:00:07]} 20. Rxf2 {[%clk 0:01:38]}  Nxf2 {[%clk 0:00:07]} 21. Kxf2 {[%clk 0:01:39]}  Rxh6 {[%clk 0:00:08]} 22. Rd1 {[%clk 0:01:30]}  Rg4 {[%clk 0:00:07]} 23. Nc5 {[%clk 0:01:29]}  b6 {[%clk 0:00:08]} 24. Kf3 {[%clk 0:01:26]}  Rg8 {[%clk 0:00:06]} 25. Nb7 {[%clk 0:01:17]}  Rh7 {[%clk 0:00:04]} 26. Nd6 {[%clk 0:01:16]}  Ke6 {[%clk 0:00:05]} 27. Nf5 {[%clk 0:01:16]}  Rd7 {[%clk 0:00:04]} 28. Rxd7 {[%clk 0:01:17]}  Kxd7 {[%clk 0:00:05]} 29. h4 {[%clk 0:01:18]} 1-0


[Site "https://www.chess.com"]

[Event "Titled Tuesday Blitz January 31 Early 2023"]
[White "Melaugh, Shane"]
[Black "Sokolovsky, Yahli"]
[WhiteFideId "2509580"]
[BlackFideId "2820242"]
[WhiteElo "2115"]
[BlackElo "2461"]
[Result "0-1"]
[Round "02"]
[TimeControl "180+2"]
[Date "2023.01.31"]
[WhiteClock "0:02:03"]
[BlackClock "0:01:02"]

1. c4 {[%clk 0:03:00]}  g6 {[%clk 0:02:57]} 2. Nc3 {[%clk 0:03:00]}  Bg7 {[%clk 0:02:57]} 3. g3 {[%clk 0:03:00]}  e5 {[%clk 0:02:51]} 4. Bg2 {[%clk 0:03:00]}  Ne7 {[%clk 0:02:52]} 5. e4 {[%clk 0:02:55]}  Nbc6 {[%clk 0:02:47]} 6. d3 {[%clk 0:02:55]}  Nd4 {[%clk 0:02:46]} 7. Nge2 {[%clk 0:02:54]}  Nec6 {[%clk 0:02:46]} 8. Be3 {[%clk 0:02:50]}  d6 {[%clk 0:02:14]} 9. h3 {[%clk 0:02:49]}  Nxe2 {[%clk 0:02:05]} 10. Qxe2 {[%clk 0:02:45]}  Be6 {[%clk 0:02:06]} 11. O-O {[%clk 0:02:43]}  Qd7 {[%clk 0:02:06]} 12. Kh2 {[%clk 0:02:43]}  h5 {[%clk 0:01:39]} 13. Rab1 {[%clk 0:02:32]}  f5 {[%clk 0:01:31]} 14. Bg5 {[%clk 0:02:32]}  Nd4 {[%clk 0:01:27]} 15. Qe3 {[%clk 0:02:24]}  h4 {[%clk 0:01:24]} 16. Bxh4 {[%clk 0:02:13]}  f4 {[%clk 0:01:24]} 17. Qe1 {[%clk 0:02:11]}  g5 {[%clk 0:01:08]} 18. Bxg5 {[%clk 0:02:04]}  Bxh3 {[%clk 0:01:05]} 19. Bh4 {[%clk 0:02:05]}  Bxg2 {[%clk 0:00:59]} 20. Kxg2 {[%clk 0:02:06]}  Rxh4 {[%clk 0:01:00]} 21. Rh1 {[%clk 0:02:02]}  f3+ {[%clk 0:00:59]} 22. Kg1 {[%clk 0:02:02]}  Rxh1+ {[%clk 0:01:00]} 23. Kxh1 {[%clk 0:02:03]}  Qh3+ {[%clk 0:01:01]} 24. Kg1 {[%clk 0:02:03]}  Qg2# {[%clk 0:01:02]} 0-1


[Site "https://www.chess.com"]

[Event "Titled Tuesday Blitz January 31 Early 2023"]
[White "Kosteniuk, Alexandra"]
[Black "Rengifo Blancas, Renzo Jhonathan"]
[WhiteFideId "4128125"]
[BlackFideId "3807185"]
[WhiteElo "2535"]
[BlackElo "2131"]
[Result "1-0"]
[Round "02"]
[TimeControl "180+2"]
[Date "2023.01.31"]
[WhiteClock "0:00:44"]
[BlackClock "0:00:01"]

1. e4 {[%clk 0:03:00]}  e5 {[%clk 0:02:55]} 2. Nf3 {[%clk 0:03:00]}  Nc6 {[%clk 0:02:54]} 3. Bc4 {[%clk 0:03:00]}  Bc5 {[%clk 0:02:53]} 4. c3 {[%clk 0:03:01]}  Nf6 {[%clk 0:02:52]} 5. d4 {[%clk 0:03:01]}  exd4 {[%clk 0:02:52]} 6. b4 {[%clk 0:03:02]}  Bb6 {[%clk 0:02:46]} 7. e5 {[%clk 0:03:01]}  d5 {[%clk 0:02:44]} 8. exf6 {[%clk 0:03:00]}  dxc4 {[%clk 0:02:44]} 9. Qe2+ {[%clk 0:03:00]}  Be6 {[%clk 0:02:42]} 10. b5 {[%clk 0:02:58]}  Na5 {[%clk 0:01:47]} 11. fxg7 {[%clk 0:02:50]}  Rg8 {[%clk 0:01:46]} 12. cxd4 {[%clk 0:02:40]}  Bxd4 {[%clk 0:01:44]} 13. Nxd4 {[%clk 0:02:38]}  Qxd4 {[%clk 0:01:43]} 14. Bb2 {[%clk 0:02:36]}  Qd5 {[%clk 0:01:37]} 15. O-O {[%clk 0:02:28]}  O-O-O {[%clk 0:01:33]} 16. Qe3 {[%clk 0:02:06]}  b6 {[%clk 0:01:24]} 17. Bf6 {[%clk 0:01:48]}  Rde8 {[%clk 0:01:14]} 18. Nc3 {[%clk 0:01:47]}  Qf5 {[%clk 0:01:06]} 19. Qd4 {[%clk 0:01:45]}  Nb7 {[%clk 0:00:41]} 20. a4 {[%clk 0:01:43]}  Nc5 {[%clk 0:00:35]} 21. Rae1 {[%clk 0:01:27]}  Nd3 {[%clk 0:00:32]} 22. Re3 {[%clk 0:01:23]}  Nf4 {[%clk 0:00:30]} 23. Rf3 {[%clk 0:01:18]}  Ne2+ {[%clk 0:00:04]} 24. Nxe2 {[%clk 0:01:17]}  Qg6 {[%clk 0:00:04]} 25. Ng3 {[%clk 0:01:09]}  h5 {[%clk 0:00:04]} 26. h4 {[%clk 0:01:00]}  Bg4 {[%clk 0:00:04]} 27. Rf4 {[%clk 0:00:59]}  Re6 {[%clk 0:00:04]} 28. Qd5 {[%clk 0:00:55]}  Rge8 {[%clk 0:00:04]} 29. Qa8+ {[%clk 0:00:53]}  Kd7 {[%clk 0:00:04]} 30. Rd4+ {[%clk 0:00:53]}  Rd6 {[%clk 0:00:03]} 31. Qc6+ {[%clk 0:00:53]}  Ke6 {[%clk 0:00:01]} 32. Qxe8+ {[%clk 0:00:49]}  Kxf6 {[%clk 0:00:01]} 33. Rxd6+ {[%clk 0:00:45]}  cxd6 {[%clk 0:00:01]} 34. g8=Q {[%clk 0:00:44]} 1-0


[Site "https://www.chess.com"]

[Event "Titled Tuesday Blitz January 31 Early 2023"]
[White "Aradhya, Garg"]
[Black "Grot, Blazej"]
[WhiteFideId "25006746"]
[BlackFideId "21835845"]
[WhiteElo "2284"]
[BlackElo "1990"]
[Result "0-1"]
[Round "02"]
[TimeControl "180+2"]
[Date "2023.01.31"]
[WhiteClock "0:00:11"]
[BlackClock "0:00:08"]

1. d4 {[%clk 0:03:00]}  Nf6 {[%clk 0:02:57]} 2. Nf3 {[%clk 0:03:00]}  e6 {[%clk 0:02:53]} 3. Bg5 {[%clk 0:02:59]}  d5 {[%clk 0:02:48]} 4. e3 {[%clk 0:03:00]}  c5 {[%clk 0:02:44]} 5. c3 {[%clk 0:02:57]}  h6 {[%clk 0:02:41]} 6. Bh4 {[%clk 0:02:55]}  Qb6 {[%clk 0:02:40]} 7. Qb3 {[%clk 0:02:48]}  Nc6 {[%clk 0:02:35]} 8. Nbd2 {[%clk 0:02:43]}  Nh5 {[%clk 0:02:30]} 9. Bg3 {[%clk 0:02:39]}  Nxg3 {[%clk 0:02:24]} 10. hxg3 {[%clk 0:02:40]}  Bd6 {[%clk 0:02:23]} 11. Qc2 {[%clk 0:02:30]}  Bd7 {[%clk 0:02:18]} 12. Be2 {[%clk 0:02:22]}  cxd4 {[%clk 0:02:13]} 13. exd4 {[%clk 0:02:22]}  O-O-O {[%clk 0:02:13]} 14. a4 {[%clk 0:02:18]}  Qc7 {[%clk 0:02:07]} 15. Nb3 {[%clk 0:02:12]}  Kb8 {[%clk 0:02:01]} 16. Nc5 {[%clk 0:01:56]}  Bc8 {[%clk 0:01:58]} 17. Nd3 {[%clk 0:01:56]}  f6 {[%clk 0:01:52]} 18. a5 {[%clk 0:01:36]}  e5 {[%clk 0:01:46]} 19. dxe5 {[%clk 0:01:27]}  fxe5 {[%clk 0:01:45]} 20. Nh4 {[%clk 0:01:27]}  g5 {[%clk 0:01:40]} 21. Ng6 {[%clk 0:01:26]}  Rhg8 {[%clk 0:01:37]} 22. Bh5 {[%clk 0:01:02]}  Bf5 {[%clk 0:01:32]} 23. O-O-O {[%clk 0:01:00]}  e4 {[%clk 0:01:23]} 24. Nb4 {[%clk 0:00:58]}  Nxb4 {[%clk 0:01:14]} 25. cxb4 {[%clk 0:00:59]}  Qxc2+ {[%clk 0:01:14]} 26. Kxc2 {[%clk 0:00:59]}  Bxg6 {[%clk 0:01:14]} 27. Bxg6 {[%clk 0:00:59]}  Rxg6 {[%clk 0:01:15]} 28. Rxd5 {[%clk 0:00:59]}  Rc8+ {[%clk 0:01:14]} 29. Kb3 {[%clk 0:00:59]}  e3 {[%clk 0:01:12]} 30. fxe3 {[%clk 0:00:57]}  Bxg3 {[%clk 0:01:12]} 31. Rf1 {[%clk 0:00:56]}  Bd6 {[%clk 0:00:42]} 32. Rf7 {[%clk 0:00:53]}  Re6 {[%clk 0:00:37]} 33. Ka4 {[%clk 0:00:42]}  Rc7 {[%clk 0:00:31]} 34. Rf3 {[%clk 0:00:41]}  a6 {[%clk 0:00:26]} 35. Rd4 {[%clk 0:00:35]}  Rc2 {[%clk 0:00:20]} 36. Kb3 {[%clk 0:00:34]}  Rxg2 {[%clk 0:00:15]} 37. e4 {[%clk 0:00:33]}  Be5 {[%clk 0:00:14]} 38. Rd8+ {[%clk 0:00:32]}  Kc7 {[%clk 0:00:14]} 39. Rff8 {[%clk 0:00:32]}  Rxb2+ {[%clk 0:00:13]} 40. Ka3 {[%clk 0:00:32]}  Re2 {[%clk 0:00:13]} 41. Rc8+ {[%clk 0:00:31]}  Kd7 {[%clk 0:00:12]} 42. Rfd8+ {[%clk 0:00:29]}  Ke7 {[%clk 0:00:12]} 43. Re8+ {[%clk 0:00:28]}  Kf7 {[%clk 0:00:13]} 44. Rf8+ {[%clk 0:00:28]}  Kg6 {[%clk 0:00:13]} 45. Rg8+ {[%clk 0:00:25]}  Kh5 {[%clk 0:00:13]} 46. Rc4 {[%clk 0:00:23]}  Bb2+ {[%clk 0:00:12]} 47. Kb3 {[%clk 0:00:23]}  Be5 {[%clk 0:00:12]} 48. Rf8 {[%clk 0:00:19]}  Re7 {[%clk 0:00:12]} 49. Rf1 {[%clk 0:00:18]}  Re3+ {[%clk 0:00:12]} 50. Kc2 {[%clk 0:00:17]}  Rh3 {[%clk 0:00:13]} 51. Rf5 {[%clk 0:00:16]}  Kh4 {[%clk 0:00:12]} 52. Rc5 {[%clk 0:00:16]}  Bf4 {[%clk 0:00:12]} 53. Rc4 {[%clk 0:00:16]}  Re3 {[%clk 0:00:09]} 54. b5 {[%clk 0:00:13]}  axb5 {[%clk 0:00:08]} 55. Rxb5 {[%clk 0:00:14]}  R3xe4 {[%clk 0:00:08]} 56. Rxe4 {[%clk 0:00:14]}  Rxe4 {[%clk 0:00:09]} 57. Rxb7 {[%clk 0:00:15]}  Ra4 {[%clk 0:00:10]} 58. Rb6 {[%clk 0:00:14]}  Rxa5 {[%clk 0:00:09]} 59. Rxh6+ {[%clk 0:00:14]}  Kg3 {[%clk 0:00:10]} 60. Kd3 {[%clk 0:00:13]}  Ra3+ {[%clk 0:00:10]} 61. Ke2 {[%clk 0:00:13]}  g4 {[%clk 0:00:10]} 62. Rh1 {[%clk 0:00:12]}  Kg2 {[%clk 0:00:09]} 63. Rh8 {[%clk 0:00:12]}  g3 {[%clk 0:00:09]} 64. Rc8 {[%clk 0:00:12]}  Ra2+ {[%clk 0:00:10]} 65. Kd3 {[%clk 0:00:12]}  Be5 {[%clk 0:00:10]} 66. Re8 {[%clk 0:00:11]}  Bf4 {[%clk 0:00:09]} 67. Ke4 {[%clk 0:00:10]}  Bc1 {[%clk 0:00:09]} 68. Rc8 {[%clk 0:00:08]}  Ba3 {[%clk 0:00:09]} 69. Kf4 {[%clk 0:00:08]}  Bd6+ {[%clk 0:00:09]} 70. Kg4 {[%clk 0:00:08]}  Kf2 {[%clk 0:00:09]} 71. Rc6 {[%clk 0:00:01]}  g2 {[%clk 0:00:08]} 72. Rxd6 {[%clk 0:00:02]}  g1=Q+ {[%clk 0:00:08]} 73. Kf5 {[%clk 0:00:02]}  Qe1 {[%clk 0:00:07]} 74. Re6 {[%clk 0:00:02]}  Qxe6+ {[%clk 0:00:06]} 75. Kxe6 {[%clk 0:00:03]}  Ra5 {[%clk 0:00:06]} 76. Kd6 {[%clk 0:00:02]}  Ke3 {[%clk 0:00:07]} 77. Kc6 {[%clk 0:00:03]}  Kd4 {[%clk 0:00:07]} 78. Kb6 {[%clk 0:00:04]}  Rh5 {[%clk 0:00:07]} 79. Kc6 {[%clk 0:00:04]}  Rg5 {[%clk 0:00:08]} 80. Kd6 {[%clk 0:00:05]}  Rg6+ {[%clk 0:00:08]} 81. Ke7 {[%clk 0:00:05]}  Rh6 {[%clk 0:00:08]} 82. Kf7 {[%clk 0:00:06]}  Ke5 {[%clk 0:00:09]} 83. Kg7 {[%clk 0:00:06]}  Ra6 {[%clk 0:00:09]} 84. Kf7 {[%clk 0:00:07]}  Rb6 {[%clk 0:00:09]} 85. Kg7 {[%clk 0:00:08]}  Kf5 {[%clk 0:00:09]} 86. Kf7 {[%clk 0:00:08]}  Rb7+ {[%clk 0:00:08]} 87. Ke8 {[%clk 0:00:09]}  Ke6 {[%clk 0:00:09]} 88. Kd8 {[%clk 0:00:09]}  Rh7 {[%clk 0:00:08]} 89. Kc8 {[%clk 0:00:10]}  Kd6 {[%clk 0:00:09]} 90. Kb8 {[%clk 0:00:10]}  Kc6 {[%clk 0:00:09]} 91. Kc8 {[%clk 0:00:11]}  Rh8# {[%clk 0:00:08]} 0-1


[Site "https://www.chess.com"]

[Event "Titled Tuesday Blitz January 31 Early 2023"]
[White "Sliwicki, Damian"]
[Black "Nouri, Alekhine"]
[WhiteFideId "1127128"]
[BlackFideId "5216184"]
[WhiteElo "2158"]
[BlackElo "2257"]
[Result "0-1"]
[Round "02"]
[TimeControl "180+2"]
[Date "2023.01.31"]
[WhiteClock "0:00:06"]
[BlackClock "0:00:52"]

1. e4 {[%clk 0:03:00]}  c5 {[%clk 0:02:05]} 2. Nf3 {[%clk 0:02:59]}  d6 {[%clk 0:02:05]} 3. d4 {[%clk 0:02:59]}  cxd4 {[%clk 0:01:53]} 4. Qxd4 {[%clk 0:03:00]}  Nf6 {[%clk 0:01:54]} 5. Bg5 {[%clk 0:03:00]}  a6 {[%clk 0:01:53]} 6. c4 {[%clk 0:02:59]}  Nc6 {[%clk 0:01:53]} 7. Qe3 {[%clk 0:02:59]}  g6 {[%clk 0:01:53]} 8. Bxf6 {[%clk 0:02:45]}  exf6 {[%clk 0:01:53]} 9. Nc3 {[%clk 0:02:46]}  Bg7 {[%clk 0:01:49]} 10. Be2 {[%clk 0:02:37]}  O-O {[%clk 0:01:48]} 11. h4 {[%clk 0:02:37]}  h5 {[%clk 0:01:48]} 12. Rd1 {[%clk 0:02:14]}  Bg4 {[%clk 0:01:41]} 13. Nd4 {[%clk 0:01:49]}  Nxd4 {[%clk 0:01:29]} 14. Qxd4 {[%clk 0:01:30]}  f5 {[%clk 0:01:25]} 15. Qxd6 {[%clk 0:01:25]}  Qa5 {[%clk 0:01:24]} 16. f3 {[%clk 0:00:53]}  Rad8 {[%clk 0:01:15]} 17. Qf4 {[%clk 0:00:38]}  Be5 {[%clk 0:01:09]} 18. Qc1 {[%clk 0:00:29]}  Bg3+ {[%clk 0:01:04]} 19. Kf1 {[%clk 0:00:28]}  Qc5 {[%clk 0:01:04]} 20. Rd4 {[%clk 0:00:08]}  Qxd4 {[%clk 0:01:01]} 21. Nd1 {[%clk 0:00:08]}  Qc5 {[%clk 0:00:52]} 22. fxg4 {[%clk 0:00:07]}  Rxd1+ {[%clk 0:00:51]} 23. Qxd1 {[%clk 0:00:06]}  Qf2# {[%clk 0:00:52]} 0-1


[Site "https://www.chess.com"]

[Event "Titled Tuesday Blitz January 31 Early 2023"]
[White "Liimatainen, Jero"]
[Black "Mahdavi, Reza"]
[WhiteFideId "509531"]
[BlackFideId "12595926"]
[WhiteElo "1948"]
[BlackElo "2339"]
[Result "0-1"]
[Round "02"]
[TimeControl "180+2"]
[Date "2023.01.31"]
[WhiteClock "0:00:05"]
[BlackClock "0:00:05"]

1. e4 {[%clk 0:02:53]}  c5 {[%clk 0:02:15]} 2. Nf3 {[%clk 0:02:50]}  e6 {[%clk 0:02:15]} 3. g3 {[%clk 0:02:50]}  d5 {[%clk 0:02:15]} 4. exd5 {[%clk 0:02:49]}  exd5 {[%clk 0:02:16]} 5. d4 {[%clk 0:02:49]}  Nc6 {[%clk 0:02:16]} 6. Bg2 {[%clk 0:02:43]}  Nf6 {[%clk 0:02:17]} 7. O-O {[%clk 0:02:43]}  cxd4 {[%clk 0:02:16]} 8. Nxd4 {[%clk 0:02:42]}  Bg4 {[%clk 0:02:16]} 9. Qd3 {[%clk 0:02:22]}  Be7 {[%clk 0:02:11]} 10. Nc3 {[%clk 0:01:32]}  O-O {[%clk 0:01:54]} 11. Nxc6 {[%clk 0:01:08]}  bxc6 {[%clk 0:01:55]} 12. Be3 {[%clk 0:01:09]}  Qd7 {[%clk 0:01:50]} 13. Na4 {[%clk 0:01:04]}  Bf5 {[%clk 0:01:31]} 14. Qd4 {[%clk 0:00:51]}  Rab8 {[%clk 0:01:27]} 15. c3 {[%clk 0:00:48]}  Bh3 {[%clk 0:01:11]} 16. Qxa7 {[%clk 0:00:44]}  Bxg2 {[%clk 0:00:56]} 17. Qxd7 {[%clk 0:00:38]}  Nxd7 {[%clk 0:00:54]} 18. Kxg2 {[%clk 0:00:39]}  Rfe8 {[%clk 0:00:50]} 19. b4 {[%clk 0:00:34]}  Bf6 {[%clk 0:00:48]} 20. Rfc1 {[%clk 0:00:28]}  Ra8 {[%clk 0:00:48]} 21. Nb2 {[%clk 0:00:14]}  Ra3 {[%clk 0:00:43]} 22. Nd1 {[%clk 0:00:14]}  Rea8 {[%clk 0:00:43]} 23. Rc2 {[%clk 0:00:14]}  Ne5 {[%clk 0:00:44]} 24. Rb1 {[%clk 0:00:13]}  Nc4 {[%clk 0:00:40]} 25. b5 {[%clk 0:00:12]}  cxb5 {[%clk 0:00:38]} 26. Rxb5 {[%clk 0:00:12]}  g6 {[%clk 0:00:37]} 27. Rxd5 {[%clk 0:00:12]}  h5 {[%clk 0:00:33]} 28. Bd4 {[%clk 0:00:11]}  Be7 {[%clk 0:00:27]} 29. h4 {[%clk 0:00:11]}  Rxa2 {[%clk 0:00:27]} 30. Rxa2 {[%clk 0:00:11]}  Rxa2 {[%clk 0:00:28]} 31. Ne3 {[%clk 0:00:12]}  Nd2 {[%clk 0:00:24]} 32. Rd7 {[%clk 0:00:11]}  Bf8 {[%clk 0:00:23]} 33. Rd8 {[%clk 0:00:11]}  Ne4 {[%clk 0:00:23]} 34. Nd5 {[%clk 0:00:12]}  f5 {[%clk 0:00:18]} 35. Kf3 {[%clk 0:00:11]}  Kf7 {[%clk 0:00:17]} 36. Kf4 {[%clk 0:00:11]}  Bh6+ {[%clk 0:00:15]} 37. Kf3 {[%clk 0:00:10]}  Nd2+ {[%clk 0:00:16]} 38. Kg2 {[%clk 0:00:10]}  Ne4 {[%clk 0:00:16]} 39. Nc7 {[%clk 0:00:08]}  Bd2 {[%clk 0:00:15]} 40. Rd7+ {[%clk 0:00:08]}  Kf8 {[%clk 0:00:13]} 41. Bg7+ {[%clk 0:00:07]}  Kg8 {[%clk 0:00:11]} 42. Bd4 {[%clk 0:00:07]}  Bxc3 {[%clk 0:00:07]} 43. Bxc3 {[%clk 0:00:06]}  Nxc3 {[%clk 0:00:08]} 44. Ne6 {[%clk 0:00:06]}  Ne4 {[%clk 0:00:08]} 45. Rg7+ {[%clk 0:00:06]}  Kh8 {[%clk 0:00:09]} 46. Rxg6 {[%clk 0:00:06]}  Rxf2+ {[%clk 0:00:09]} 47. Kg1 {[%clk 0:00:07]}  Re2 {[%clk 0:00:08]} 48. Nf4 {[%clk 0:00:07]}  Rb2 {[%clk 0:00:07]} 49. Nxh5 {[%clk 0:00:07]}  Kh7 {[%clk 0:00:07]} 50. Nf4 {[%clk 0:00:07]}  Nd2 {[%clk 0:00:05]} 51. g4 {[%clk 0:00:07]}  Nf3+ {[%clk 0:00:05]} 52. Kf1 {[%clk 0:00:08]}  Nxh4 {[%clk 0:00:05]} 53. gxf5 {[%clk 0:00:07]}  Nxg6 {[%clk 0:00:05]} 54. Nxg6 {[%clk 0:00:07]}  Kg7 {[%clk 0:00:06]} 55. Ke1 {[%clk 0:00:07]}  Kf6 {[%clk 0:00:06]} 56. Nh4 {[%clk 0:00:07]}  Ra2 {[%clk 0:00:03]} 57. Nf3 {[%clk 0:00:06]}  Kxf5 {[%clk 0:00:03]} 58. Nd2 {[%clk 0:00:06]}  Ke5 {[%clk 0:00:03]} 59. Kd1 {[%clk 0:00:06]}  Kd4 {[%clk 0:00:04]} 60. Kc1 {[%clk 0:00:05]}  Kd3 {[%clk 0:00:03]} 61. Nb3 {[%clk 0:00:05]}  Kc3 {[%clk 0:00:04]} 62. Nd2 {[%clk 0:00:05]}  Rxd2 {[%clk 0:00:04]} 63. Kb1 {[%clk 0:00:05]}  Rc2 {[%clk 0:00:04]} 64. Ka1 {[%clk 0:00:05]}  Kb3 {[%clk 0:00:05]} 0-1


[Site "https://www.chess.com"]